bitfinex/quotes_ETHUSD_20251201
["timestamp","ask_amount","ask_price","bid_price","bid_amount"]
[1764607848767,0.78041405,2741.2,2740.5,4.24386539]
[1764607849069,0.78041405,2741.1,2740.5,7.89283455]
[1764607849664,0.78041405,2741.1,2740.5,11.54180371]
[1764607849863,0.78041405,2741.3,2740.5,12.71436457]
[1764607850172,0.78041405,2741.2,2740.5,1.76756086]
[1764607850466,0.78041405,2741.1,2740.2,0.595]
[1764607850671,0.4812,2741.0,2740.2,0.595]
[1764607850883,0.67992082,2741.0,2740.2,0.595]
[1764607851062,0.67992082,2741.0,2740.0,7.29923787]
[1764607851063,0.1978,2740.9,2740.0,7.29923787]
[1764607851258,0.679,2740.9,2740.0,7.29923787]
[1764607851644,0.4812,2740.8,2740.0,7.29923787]
[1764607851854,0.7195729,2740.8,2740.0,7.29923787]
[1764607852269,0.4812,2740.7,2740.0,3.64960284]
[1764607852486,0.4812,2740.7,2739.9,3.64973317]
[1764607852763,1.20679411,2740.7,2739.9,7.2995014]
[1764607852969,0.59997192,2740.6,2739.8,7.89476999]
[1764607853248,0.77870604,2740.6,2739.7,0.595]
[1764607853484,0.1978,2740.9,2739.7,0.595]
[1764607853785,0.1978,2740.9,2740.0,0.405504]
[1764607853950,0.1978,2740.9,2740.1,0.595]
[1764607854146,0.1978,2740.9,2740.1,0.7787]
[1764607854344,0.679,2740.9,2740.1,1.61995575]
[1764607854968,0.1978,2740.9,2740.1,1.61995575]
[1764607855280,0.1978,2740.9,2740.1,2.07725575]
[1764607855453,0.1978,2740.9,2740.2,0.4573]
[1764607855652,0.4812,2741.1,2740.3,10.94770644]
[1764607855848,0.002,2741.3,2740.4,1.14050064]
[1764607856080,0.002,2741.3,2740.5,0.595]
[1764607856251,0.002,2741.3,2740.5,1.0523]
[1764607856978,0.002,2741.3,2740.5,0.595]
[1764607857175,0.002,2741.3,2740.5,1.0523]
[1764607857380,0.002,2741.3,2740.6,0.67658006]
[1764607857691,0.002,2741.3,2740.8,10.94570928]
[1764607857990,0.002,2741.3,2740.9,0.595]
[1764607858174,0.002,2741.3,2741.2,0.4701]
[1764607859248,0.002,2741.3,2740.9,0.595]
[1764607859450,0.002,2741.3,2740.9,1.80799133]
[1764607859956,0.002,2741.3,2741.0,7.29660706]
[1764607860868,0.4546,2741.1,2740.6,0.21928006]
[1764607861072,0.0893,2741.0,2740.5,3.64894788]
[1764607861274,0.002,2741.3,2740.5,10.9468862]
[1764607861275,0.481,2741.3,2740.5,10.9468862]
[1764607861463,0.481,2741.3,2740.5,11.4212862]
[1764607861665,0.481,2741.3,2740.6,1.20162862]
[1764607861866,0.481,2741.3,2740.7,7.29740576]
[1764607862463,0.481,2741.3,2740.7,3.64870288]
[1764607862659,0.1827,2740.8,2740.6,4.85045751]
[1764607862861,0.481,2741.3,2740.6,7.29766491]
[1764607863486,0.002,2741.3,2740.6,7.77206491]
[1764607863693,0.002,2741.3,2740.6,10.94650093]
[1764607863884,0.481,2741.3,2740.6,3.64882889]
[1764607864078,0.481,2741.3,2740.5,7.2978799]
[1764607864079,0.481,2741.3,2740.7,1.09467088]
[1764607865557,1.20659411,2741.3,2740.5,7.8928799]
[1764607865790,1.25888305,2741.3,2740.5,11.54184906]
[1764607866088,0.481,2741.3,2740.5,11.54184906]
[1764607866387,0.479,2741.2,2740.5,7.8928799]
[1764607866594,0.479,2741.2,2740.5,4.24391074]
[1764607866797,1.25742482,2741.2,2740.5,8.70146598]
[1764607867008,0.479,2741.2,2740.5,7.8928799]
[1764607867310,0.002,2741.3,2740.6,0.4744]
[1764607867457,0.002,2741.3,2740.5,3.64891074]
[1764607867458,0.479,2741.1,2740.5,3.64891074]
[1764607867661,0.479,2741.1,2740.5,7.2978799]
[1764607867894,0.479,2741.1,2740.5,3.64891074]
[1764607868208,0.479,2741.1,2740.4,7.29820464]
[1764607868411,1.25742482,2741.1,2740.5,0.42430905]
[1764607868696,0.78042482,2741.3,2741.0,0.4566]
[1764607868879,0.002,2741.3,2741.2,0.4566]
[1764607869194,0.002,2741.3,2741.0,0.594]
[1764607869373,0.4566,2741.3,2741.0,0.594]
[1764607869975,0.4566,2741.3,2741.1,7.29634088]
[1764607870174,0.4566,2741.3,2741.2,0.78903409]
[1764607870493,0.4546,2741.2,2740.6,3.64883602]
[1764607870694,0.4546,2741.2,2739.9,0.1929]
[1764607870695,0.6338,2740.7,2739.9,0.1929]
[1764607870882,0.88906739,2740.6,2740.0,7.29923828]
[1764607871095,0.5867,2740.6,2740.0,7.29923828]
[1764607871285,0.78155322,2740.5,2740.1,0.80861383]
[1764607871604,0.78155322,2740.4,2740.1,0.80861383]
[1764607871802,0.479,2740.5,2740.1,0.80861383]
[1764607872099,0.78242889,2740.4,2740.2,0.001]
[1764607872302,0.78332929,2740.3,2740.2,0.001]
[1764607872504,1.23792929,2740.3,2740.2,0.001]
[1764607872669,1.71692929,2740.3,2740.2,0.001]
[1764607873898,3.66833379,2740.3,2740.2,0.001]
[1764607874098,1.71692929,2740.3,2740.2,0.001]
[1764607874301,3.66833379,2740.3,2740.2,0.001]
[1764607875802,4.03225379,2740.3,2740.2,0.001]
[1764607876201,6.09175888,2740.3,2740.2,0.001]
[1764607876399,6.09175888,2740.3,2738.7,0.4744]
[1764607876400,0.36392,2740.1,2738.8,7.89646822]
[1764607876705,3.40972203,2740.0,2738.8,7.89646822]
[1764607876905,2.81572203,2739.9,2738.9,0.879904]
[1764607877102,0.78332929,2739.8,2739.0,1.24276063]
[1764607877300,0.78332929,2739.7,2739.1,0.6673]
[1764607877503,0.78332929,2739.6,2739.1,0.1929]
[1764607877819,0.1827,2739.9,2739.1,0.6673]
[1764607878114,0.78408672,2739.8,2739.3,7.30113532]
[1764607878319,0.78408672,2739.7,2739.3,7.30113532]
[1764607878606,0.78408672,2739.6,2739.3,7.30113532]
[1764607878820,0.1827,2739.9,2739.3,7.30113532]
[1764607879104,0.78393584,2739.8,2739.3,7.30113532]
[1764607879291,0.78393584,2739.7,2739.4,1.1736813]
[1764607879610,0.78393584,2739.6,2739.4,1.1736813]
[1764607879906,0.1827,2739.9,2739.4,1.1736813]
[1764607880108,0.78369749,2739.8,2739.4,1.1736813]
[1764607880297,0.78369749,2739.7,2739.6,3.6501679]
[1764607880976,0.78369749,2739.7,2739.6,4.1067679]
[1764607881195,0.78344773,2739.7,2739.5,4.49773257]
[1764607881388,0.1827,2739.9,2739.5,3.65025091]
[1764607881585,0.4546,2739.6,2739.2,8.08638543]
[1764607881788,0.1827,2739.9,2739.2,8.08638543]
[1764607882105,0.78325704,2739.8,2739.2,8.08638543]
[1764607882309,0.78325704,2739.7,2739.2,8.08638543]
[1764607882485,0.1827,2739.9,2739.3,0.82792854]
[1764607882686,0.78310845,2739.8,2739.3,0.82792854]
[1764607882909,0.78310845,2739.7,2739.3,0.82792854]
[1764607883079,0.6617,2739.9,2739.3,0.82792854]
[1764607883403,0.7830562,2739.8,2739.3,0.82792854]
[1764607883608,0.7830562,2739.7,2739.3,0.82792854]
[1764607883805,0.7830562,2739.7,2738.9,0.405504]
[1764607883806,0.4546,2739.4,2738.8,0.593]
[1764607884014,0.97992228,2739.7,2738.8,1.0674]
[1764607884178,0.78240261,2739.6,2738.9,0.405504]
[1764607884378,0.78240261,2739.5,2739.0,7.301935]
[1764607884714,0.78240261,2739.4,2739.0,8.1794189]
[1764607884907,0.97992228,2739.7,2739.0,8.1794189]
[1764607885107,0.78251734,2739.6,2739.1,0.1929]
[1764607885280,0.78251734,2739.5,2739.1,0.1929]
[1764607885476,0.78251734,2739.7,2739.1,0.1929]
[1764607885710,0.97992228,2740.4,2739.4,10.41958961]
[1764607885916,0.7817157,2740.3,2739.7,0.4566]
[1764607886145,1.96019794,2741.0,2739.9,0.405504]
[1764607886146,0.7817157,2740.5,2739.9,0.405504]
[1764607886313,0.7817157,2740.8,2740.3,10.94770644]
[1764607886508,0.479,2741.2,2740.4,1.59703064]
[1764607886741,0.78208644,2741.1,2740.5,0.1837]
[1764607886939,0.98112228,2741.3,2740.5,0.1837]
[1764607886940,0.78208644,2741.0,2740.5,0.1837]
[1764607887111,0.78208644,2741.2,2740.5,0.1837]
[1764607887447,0.78208644,2741.1,2740.5,0.1837]
[1764607887609,0.78208644,2741.0,2740.5,0.1837]
[1764607887810,0.78208644,2741.2,2740.5,0.1837]
[1764607888010,0.78208644,2741.1,2740.5,0.1837]
[1764607888330,0.78208644,2741.0,2740.5,0.1837]
[1764607888533,0.78208644,2741.2,2740.6,7.29767204]
[1764607888735,0.78208644,2741.1,2740.7,1.11302599]
[1764607889041,0.78295343,2741.0,2740.0,3.6495373]
[1764607889246,0.0666,2740.6,2740.0,7.29917233]
[1764607889453,2.35587571,2740.5,2739.4,0.4739]
[1764607889779,2.48846982,2740.4,2739.3,3.65056766]
[1764607889911,1.70551639,2740.2,2739.3,4.45928136]
[1764607890112,2.35587571,2740.1,2739.3,0.8087137]
[1764607890342,1.76287571,2740.0,2739.1,0.7859]
[1764607890512,1.76287571,2739.9,2739.1,4.43773037]
[1764607890712,0.78295343,2739.8,2739.1,8.08856458]
[1764607890913,1.64792228,2739.9,2739.1,11.73939879]
[1764607890914,0.78295343,2739.7,2739.1,11.73939879]
[1764607891126,1.25505343,2739.8,2739.2,1.21930988]
[1764607891430,0.78301191,2739.8,2739.1,8.53596678]
[1764607891639,0.97891191,2739.9,2739.1,8.53596678]
[1764607891848,0.97891191,2739.9,2739.1,12.18680099]
[1764607892026,0.78301191,2739.8,2739.1,12.18680099]
[1764607892226,0.78301191,2739.8,2739.2,1.2186801]
[1764607892548,0.78301191,2739.8,2739.3,7.30113532]
[1764607892741,0.1959,2739.9,2739.3,7.30113532]
[1764607892945,0.97891191,2739.9,2739.3,7.30113532]
[1764607893251,0.78221191,2739.8,2739.2,8.52004899]
[1764607893431,0.4721,2739.8,2739.2,3.65066796]
[1764607893652,0.4721,2739.8,2739.2,7.30136889]
[1764607893857,0.4833,2739.3,2739.1,3.65181093]
[1764607894044,0.4833,2739.3,2739.1,0.001]
[1764607894245,0.4721,2739.6,2739.1,3.65182668]
[1764607894447,0.4721,2739.6,2739.1,0.001]
[1764607894646,0.4721,2739.6,2739.1,0.73142016]
[1764607895779,1.19769411,2739.6,2739.1,0.73142016]
[1764607896080,0.4833,2739.2,2739.1,0.001]
[1764607896582,0.9554,2739.2,2739.1,0.001]
[1764607898079,1.78069821,2739.2,2739.1,0.001]
[1764607898453,5.43139914,2739.2,2739.1,0.001]
[1764607899192,7.31096752,2739.2,2739.1,0.001]
[1764607899376,3.70494216,2739.2,2739.1,0.001]
[1764607899690,7.35564309,2739.2,2739.1,0.001]
[1764607899861,3.60523806,2739.2,2739.1,0.001]
[1764607900185,5.90446479,2739.2,2739.1,0.001]
[1764607900356,6.26838479,2739.2,2739.1,0.001]
[1764607900691,7.21126342,2739.2,2739.1,0.001]
[1764607901280,3.56056249,2739.2,2739.1,0.001]
[1764607901476,2.25376386,2739.2,2739.1,0.001]
[1764607901789,6.26838479,2739.2,2739.1,0.001]
[1764607901969,5.90446479,2739.2,2739.1,0.001]
[1764607902164,1.68099411,2739.2,2739.1,0.001]
[1764607902483,5.33169504,2739.2,2739.1,0.001]
[1764607902686,7.39803504,2739.2,2739.1,0.001]
[1764607902985,7.76195504,2739.2,2739.1,0.001]
[1764607903352,4.11125411,2739.2,2739.1,0.001]
[1764607903554,1.68099411,2739.2,2739.1,0.001]
[1764607903799,2.04491411,2739.2,2739.1,0.001]
[1764607903996,5.69561504,2739.2,2739.1,0.001]
[1764607904495,7.65581298,2739.2,2739.1,0.001]
[1764607905361,8.43977513,2739.2,2739.1,0.001]
[1764607905591,9.70811012,2739.2,2739.1,0.001]
[1764607906695,1.85991811,2739.0,2738.9,0.001]
[1764607906871,2.75933628,2739.0,2738.2,0.1837]
[1764607907072,1.70545626,2738.9,2738.2,0.1837]
[1764607907397,1.37596215,2738.8,2738.2,0.1837]
[1764607907566,0.78396215,2738.7,2738.2,0.1837]
[1764607907774,1.37596215,2738.8,2738.2,0.1837]
[1764607908201,0.4721,2738.7,2738.1,0.1837]
[1764607908373,1.25606215,2738.7,2738.1,0.1837]
[1764607908806,0.78396215,2738.7,2738.2,3.65203418]
[1764607909003,1.25606215,2738.7,2738.3,0.74877821]
[1764607909202,1.25606215,2738.7,2738.1,7.30428082]
[1764607909444,1.25606215,2738.7,2738.1,7.48798082]
[1764607910106,1.98165626,2738.7,2738.1,0.1837]
[1764607910308,0.78396215,2738.6,2738.0,7.30453433]
[1764607910508,0.78396215,2738.6,2738.1,0.77582343]
[1764607910704,0.78396215,2738.6,2738.5,0.001]
[1764607910933,1.26726215,2738.6,2738.5,0.001]
[1764607911104,0.78396215,2738.7,2738.5,0.001]
[1764607911308,0.4833,2738.6,2738.5,0.001]
[1764607911535,0.9554,2738.6,2738.5,0.001]
[1764607912108,3.85020644,2738.6,2738.5,0.001]
[1764607912408,1.85826215,2738.6,2738.5,0.001]
[1764607912735,3.3102126,2738.6,2738.5,0.001]
[1764607912938,1.26726215,2738.6,2738.5,0.001]
[1764607913306,1.73936215,2738.6,2738.5,0.001]
[1764607914010,1.26726215,2738.6,2738.5,0.001]
[1764607914209,1.73936215,2738.6,2738.5,0.001]
[1764607916424,2.52897036,2738.6,2738.5,0.001]
[1764607916944,3.05515626,2738.6,2738.5,0.001]
[1764607917522,4.03500671,2738.6,2738.5,0.001]
[1764607917834,3.56290671,2738.6,2738.5,0.001]
[1764607918422,3.05515626,2738.6,2738.5,0.001]
[1764607919235,3.08181331,2738.6,2738.5,0.001]
[1764607919436,2.10055626,2738.6,2738.5,0.001]
[1764607919647,0.78396215,2738.6,2738.5,0.4692]
[1764607919861,0.78396215,2738.6,2738.5,0.9229]
[1764607920613,0.9821488,2739.1,2738.5,0.9229]
[1764607920943,0.7858571,2739.0,2738.6,11.40600228]
[1764607921157,0.9821488,2739.4,2738.7,1.14070023]
[1764607921337,0.78578986,2739.3,2739.0,0.4731]
[1764607921654,0.9821488,2739.6,2739.3,0.6597]
[1764607921837,0.002,2739.8,2739.5,0.4731]
[1764607922023,0.78570041,2739.7,2739.5,0.4731]
[1764607922370,0.78566399,2739.6,2739.3,0.1866]
[1764607922526,0.002,2739.8,2739.3,0.1866]
[1764607922858,0.78564908,2739.7,2739.5,0.4731]
[1764607923154,0.002,2739.8,2739.3,3.83715399]
[1764607923155,0.78564908,2739.6,2739.3,3.83715399]
[1764607923447,0.002,2739.8,2739.3,8.73316648]
[1764607923711,0.78572488,2739.7,2739.4,0.4515]
[1764607923828,0.002,2739.8,2739.7,0.4731]
[1764607924037,0.002,2739.8,2739.7,0.9246]
[1764607925323,0.002,2739.8,2739.7,4.57463467]
[1764607925518,0.002,2739.8,2739.7,5.4562139]
[1764607925721,0.4965,2739.8,2738.7,1.14070023]
[1764607925945,2.4531327,2739.7,2738.7,4.10286743]
[1764607926135,0.7847839,2739.6,2738.8,0.72559411]
[1764607926433,0.6862,2739.7,2738.8,0.72559411]
[1764607926434,0.7847839,2739.5,2738.8,0.72559411]
[1764607926747,0.7847839,2739.4,2738.8,0.72559411]
[1764607926953,0.7847839,2739.6,2738.8,0.72559411]
[1764607927132,0.7847839,2739.5,2738.8,0.72559411]
[1764607927467,4.89035239,2739.6,2738.7,0.4515]
[1764607927657,0.7847839,2739.5,2738.7,4.10285441]
[1764607927838,0.7847839,2739.4,2738.5,0.001]
[1764607928154,0.7847839,2739.3,2738.6,7.30300152]
[1764607928523,1.2401839,2739.3,2738.5,0.001]
[1764607928744,0.4554,2739.3,2738.5,0.001]
[1764607928924,1.2401839,2739.2,2738.5,3.65263166]
[1764607929124,0.96790229,2739.1,2738.5,3.65263166]
[1764607929339,0.7847839,2739.1,2738.5,0.001]
[1764607929739,0.7847839,2739.1,2738.5,1.17809411]
[1764607930025,1.3757839,2739.4,2738.5,1.17809411]
[1764607930225,0.7847839,2739.3,2738.6,0.4515]
[1764607930450,0.7847839,2739.4,2739.2,0.4731]
[1764607930761,0.002,2739.7,2739.6,0.4731]
[1764607931125,0.002,2739.7,2739.6,0.9246]
[1764607931350,0.002,2739.7,2739.6,4.5747679]
[1764607931548,0.002,2739.7,2739.6,5.45637346]
[1764607932084,0.002,2739.7,2739.6,5.00487346]
[1764607932577,0.002,2739.7,2739.4,4.24138576]
[1764607932779,0.002,2739.7,2739.6,0.4731]
[1764607933277,0.002,2739.7,2739.5,3.65030114]
[1764607933579,0.002,2739.7,2739.4,3.65038564]
[1764607933784,0.002,2739.7,2739.6,0.4731]
[1764607935154,0.002,2739.7,2739.5,0.73008638]
[1764607935354,0.002,2739.7,2738.9,0.1462948]
[1764607935355,0.4945,2739.6,2738.9,0.1462948]
[1764607935581,0.0952,2739.5,2739.0,3.6509675]
[1764607935955,0.5506,2739.5,2738.8,3.65120286]
[1764607936154,0.5506,2739.5,2738.8,7.30243697]
[1764607936387,0.5506,2739.5,2738.8,8.13693067]
[1764607937187,0.0952,2739.5,2738.8,4.48569656]
[1764607937388,0.0952,2739.5,2738.8,8.13693067]
[1764607937591,0.0952,2739.5,2738.5,3.65261854]
[1764607937592,0.4906,2738.9,2738.5,0.001]
[1764607937792,1.50921495,2739.4,2738.5,0.001]
[1764607938001,1.37462084,2739.3,2738.8,0.4731]
[1764607938166,0.78362084,2739.2,2738.8,0.4731]
[1764607938490,0.78362084,2739.2,2738.5,7.30422979]
[1764607938491,1.23902084,2739.2,2738.5,7.30422979]
[1764607938682,1.37462084,2739.3,2738.6,0.4515]
[1764607938880,1.76397413,2739.7,2738.6,0.4515]
[1764607938881,0.78362084,2739.2,2738.6,0.4515]
[1764607939072,1.18299411,2739.7,2738.7,1.14073639]
[1764607939073,0.591,2739.4,2738.7,1.14073639]
[1764607939259,1.50939641,2739.6,2738.7,1.14073639]
[1764607939260,1.96479641,2739.6,2738.7,1.14073639]
[1764607939461,5.4215096,2739.5,2738.7,4.79203136]
[1764607939662,1.6031223,2739.4,2738.7,4.79203136]
[1764607939862,0.7838023,2739.4,2738.7,8.89489879]
[1764607940093,1.0456,2739.5,2738.7,3.65129497]
[1764607940262,5.47970479,2739.5,2738.7,7.3026624]
[1764607940467,0.36392,2739.3,2738.7,7.3026624]
[1764607940997,0.81932,2739.3,2738.6,3.65146762]
[1764607941168,0.81932,2739.3,2738.6,7.30296838]
[1764607941498,0.81932,2739.3,2738.5,7.3042682]
[1764607941794,1.54491411,2739.3,2738.6,0.78952682]
[1764607942402,0.72559411,2739.2,2738.6,0.78952682]
[1764607942597,0.19940821,2739.1,2738.5,0.001]
[1764607942898,0.65480821,2739.1,2738.5,0.001]
[1764607943200,0.4554,2739.1,2738.5,0.001]
[1764607943401,1.0464,2739.1,2738.5,0.77660142]
[1764607943600,1.77199411,2739.1,2738.5,0.77660142]
[1764607943897,0.36392,2739.2,2738.5,7.7557575]
[1764607943898,0.591,2739.2,2738.5,7.7557575]
[1764607944098,0.4554,2739.4,2738.5,7.7557575]
[1764607944270,0.591,2739.3,2738.5,7.7557575]
[1764607944794,0.78457098,2739.3,2738.5,7.7557575]
[1764607945098,0.591,2739.3,2738.6,0.77557575]
[1764607945272,2.10116509,2739.3,2738.6,0.77557575]
[1764607945471,2.10116509,2739.3,2738.7,3.65136743]
[1764607946795,1.83097098,2739.3,2738.6,8.07851183]
[1764607946994,1.83097098,2739.3,2738.6,0.77557575]
[1764607947193,1.23997098,2739.2,2738.6,8.07848844]
[1764607947399,0.4554,2739.2,2738.7,0.80794884]
[1764607947596,0.4554,2739.2,2738.7,4.4592308]
[1764607948100,0.4554,2739.2,2738.7,4.45929417]
[1764607948301,1.23997098,2739.2,2738.7,3.65134533]
[1764607948597,0.78457098,2739.2,2738.7,7.30271276]
[1764607948800,0.591,2739.3,2738.7,7.30271276]
[1764607949098,0.78457098,2739.2,2738.7,7.76261276]
[1764607949304,0.78457098,2739.1,2738.7,7.76261276]
[1764607949502,0.78457098,2739.4,2739.1,0.4854]
[1764607949803,0.78457098,2739.4,2738.8,4.8873243]
[1764607950098,0.78457098,2739.4,2738.9,0.48873243]
[1764607950477,0.78657098,2739.5,2738.9,0.95663243]
[1764607950896,0.78457098,2739.4,2738.9,0.95663243]
[1764607951398,0.78457098,2739.4,2739.0,0.4679]
[1764607951818,0.78457098,2739.4,2739.0,3.6509675]
[1764607952018,0.78457098,2739.4,2739.1,0.77908006]
[1764607952492,0.78457098,2739.4,2739.1,0.1866]
[1764607952698,0.002,2739.5,2739.3,0.4637]
[1764607952887,0.78657098,2739.5,2739.3,0.4637]
[1764607953083,0.002,2739.5,2739.3,0.4637]
[1764607953284,0.78657098,2739.5,2739.3,0.4637]
[1764607953604,1.75597098,2739.4,2738.5,0.001]
[1764607953812,0.79949411,2739.2,2738.5,0.001]
[1764607954015,1.37557098,2739.1,2738.5,0.001]
[1764607954189,0.78457098,2739.0,2738.5,0.001]
[1764607954391,0.78457098,2738.9,2738.5,0.001]
[1764607954590,0.78457098,2738.8,2738.5,0.001]
[1764607954801,0.78457098,2738.7,2738.5,0.001]
[1764607955010,0.78457098,2739.0,2738.5,0.001]
[1764607955210,0.78457098,2738.9,2738.5,0.001]
[1764607955410,0.78457098,2738.8,2738.5,0.001]
[1764607955605,0.78457098,2738.7,2738.5,0.001]
[1764607955804,1.69893994,2739.1,2738.5,0.001]
[1764607956000,0.78688457,2739.0,2738.5,0.001]
[1764607956313,0.78688457,2738.9,2738.5,0.001]
[1764607956510,0.78688457,2738.8,2738.5,0.001]
[1764607956715,1.69893994,2739.1,2738.5,0.001]
[1764607956716,0.78688457,2738.7,2738.5,0.001]
[1764607956913,6.0753776,2739.1,2738.5,0.001]
[1764607956914,1.15080457,2739.0,2738.5,0.001]
[1764607957113,0.78688457,2738.9,2738.5,0.001]
[1764607957283,1.69893994,2739.1,2738.5,0.001]
[1764607957284,0.78688457,2738.8,2738.5,0.001]
[1764607957486,0.78688457,2738.7,2738.5,0.001]
[1764607957790,0.78688457,2738.9,2738.5,0.4689]
[1764607957989,0.78688457,2738.8,2738.7,3.65136743]
[1764607958319,0.591,2739.0,2738.7,3.65136743]
[1764607958503,0.78688457,2738.9,2738.5,0.4689]
[1764607958704,0.78688457,2738.8,2738.5,3.65261367]
[1764607958889,0.78688457,2738.9,2738.5,3.65261367]
[1764607959087,0.78688457,2738.8,2738.5,3.65261367]
[1764607959393,0.78688457,2738.9,2738.5,0.001]
[1764607959599,0.78688457,2738.8,2738.5,0.001]
[1764607959797,0.78688457,2738.9,2738.5,0.001]
[1764607960009,0.78688457,2738.8,2738.5,0.001]
[1764607960714,0.78688457,2738.9,2738.5,0.001]
[1764607961019,0.591,2739.4,2738.9,0.4637]
[1764607961330,0.78649759,2739.3,2738.9,0.4637]
[1764607961639,0.002,2739.5,2738.9,0.4637]
[1764607961640,0.78649759,2739.2,2738.9,0.9316]
[1764607961806,0.78649759,2739.4,2738.9,0.9316]
[1764607962152,0.78649759,2739.4,2739.1,7.30166842]
[1764607962308,0.002,2739.5,2739.2,0.77695684]
[1764607962512,0.0012,2739.5,2739.2,0.77695684]
[1764607962752,0.0012,2739.5,2738.5,0.73147833]
[1764607962753,0.4981,2739.3,2738.6,3.65150076]
[1764607962950,1.26018588,2739.4,2738.8,0.591]
[1764607962951,0.78688588,2739.4,2738.8,0.591]
[1764607963138,0.0012,2739.5,2738.8,0.591]
[1764607963139,0.78688588,2739.3,2738.8,0.591]
[1764607963336,0.72679411,2739.5,2738.8,0.591]
[1764607963633,0.78723254,2739.4,2738.8,0.591]
[1764607963838,0.78723254,2739.3,2738.6,3.65150076]
[1764607964036,0.78723254,2739.2,2738.6,3.65150076]
[1764607964212,0.78723254,2739.1,2738.6,7.30300152]
[1764607964412,0.4733,2739.4,2738.6,7.30300152]
[1764607964656,0.78761381,2739.3,2738.7,0.90933799]
[1764607964833,0.78761381,2739.2,2738.7,0.90933799]
[1764607965145,0.78761381,2739.1,2738.7,0.90933799]
[1764607965347,0.0997041,2739.2,2738.7,0.90933799]
[1764607965511,0.78802587,2739.1,2738.7,0.90933799]
[1764607965849,0.4733,2739.4,2738.8,0.82123395]
[1764607966011,0.7880278,2739.3,2738.8,0.82123395]
[1764607966212,0.7880278,2739.2,2738.7,3.65128163]
[1764607966528,0.7880278,2739.1,2738.5,0.73147833]
[1764607966836,0.7880278,2739.0,2738.5,4.3830613]
[1764607967037,1.2613278,2738.9,2738.5,4.38306935]
[1764607967245,0.7880278,2738.8,2738.5,0.73147833]
[1764607967590,0.4981,2738.6,2738.5,0.001]
[1764607967715,1.2861278,2738.6,2738.5,0.001]
[1764607968051,2.84894191,2738.6,2738.5,0.001]
[1764607968344,6.84443686,2738.6,2738.5,0.001]
[1764607968711,6.50044267,2738.6,2738.5,0.001]
[1764607969241,2.84894191,2738.6,2738.5,0.001]
[1764607969452,5.41092856,2738.6,2738.5,0.001]
[1764607969614,6.36584856,2738.6,2738.5,0.001]
[1764607969816,5.41092856,2738.6,2738.5,0.001]
[1764607970143,1.7594278,2738.6,2738.5,0.001]
[1764607970452,1.2861278,2738.6,2738.5,0.001]
[1764607971045,6.39679486,2738.6,2738.5,0.001]
[1764607971348,11.22451303,2738.6,2738.5,0.001]
[1764607971550,8.72032403,2738.6,2738.5,0.001]
[1764607971740,6.50044267,2738.6,2738.5,0.001]
[1764607971941,9.07443267,2738.6,2738.5,0.001]
[1764607972142,11.03404184,2738.6,2738.5,0.001]
[1764607972350,9.43835267,2738.6,2738.5,0.001]
[1764607972526,9.07443267,2738.6,2738.5,0.001]
[1764607972722,8.48343267,2738.6,2738.5,0.001]
[1764607973046,9.43835267,2738.6,2738.5,0.001]
[1764607973937,9.07443267,2738.6,2738.5,0.001]
[1764607974644,1.8771278,2738.6,2738.5,0.001]
[1764607974852,6.72752267,2738.6,2738.5,0.001]
[1764607975440,3.07602191,2738.6,2738.5,0.001]
[1764607975640,6.72752267,2738.6,2738.5,0.001]
[1764607977350,7.30035508,2738.6,2738.5,0.001]
[1764607977651,6.72752267,2738.6,2738.5,0.001]
[1764607978430,2.10462191,2738.6,2738.5,0.001]
[1764607979254,2.60272191,2738.6,2738.5,0.001]
[1764607979453,6.25422267,2738.6,2738.5,0.001]
[1764607979755,2.60272191,2738.6,2738.5,0.001]
[1764607980055,2.10462191,2738.6,2738.5,0.001]
[1764607980459,1.51362191,2738.6,2738.5,0.4652]
[1764607980636,1.77149411,2738.6,2738.5,0.001]
[1764607980836,3.62572814,2738.6,2738.5,0.001]
[1764607981053,7.2772289,2738.6,2738.5,0.001]
[1764607982042,30.35833461,2738.6,2738.5,0.001]
[1764607982364,1.13109811,2738.5,2737.3,3.65321863]
[1764607982664,0.36392,2737.9,2737.2,3.83471331]
[1764607982864,1.7429478,2737.8,2737.2,3.83475994]
[1764607983056,1.3790278,2737.7,2737.2,0.1814]
[1764607983257,0.7880278,2737.6,2737.2,0.1814]
[1764607983555,0.7880278,2737.6,2736.9,0.1833]
[1764607983556,0.4549,2737.3,2736.9,0.1833]
[1764607983746,0.36392,2737.5,2736.9,4.22075414]
[1764607983933,1.6453478,2737.6,2736.9,3.83703811]
[1764607984456,1.51362191,2737.6,2736.9,7.98810697]
[1764607985257,0.36392,2737.4,2736.9,0.1833]
[1764607985563,0.85652,2737.4,2736.9,4.22075256]
[1764607985753,0.85652,2737.4,2736.9,0.1833]
[1764607985754,0.591,2737.3,2736.9,0.1833]
[1764607986063,1.1841041,2737.3,2736.6,7.30822787]
[1764607986264,1.0844,2737.3,2736.6,7.30822787]
[1764607986465,1.80999411,2737.3,2736.7,4.43455601]
[1764607986666,5.82637068,2737.3,2736.7,0.78055279]
[1764607986856,0.4934,2737.2,2736.4,3.65437124]
[1764607987058,1.82225072,2737.2,2736.3,0.1833]
[1764607987367,1.45913072,2737.2,2736.3,7.98969713]
[1764607987552,1.45913072,2737.2,2736.4,0.79896971]
[1764607987760,0.78493072,2737.2,2736.4,1.29626971]
[1764607987938,0.591,2737.2,2736.5,0.4973]
[1764607988771,0.591,2737.2,2736.6,3.6541694]
[1764607989672,0.591,2737.2,2736.6,7.3083388]
[1764607989838,0.591,2737.2,2736.7,0.78056388]
[1764607990356,0.78493072,2737.3,2736.7,0.78056388]
[1764607990552,2.00392483,2737.4,2736.7,0.78056388]
[1764607990760,1.27833072,2737.4,2736.7,7.30801334]
[1764607990958,0.1808,2737.9,2737.3,0.6456]
[1764607991271,0.591,2737.6,2737.3,0.1814]
[1764607991473,0.4549,2737.4,2736.7,3.65397746]
[1764607991871,0.4549,2737.4,2736.7,7.30801334]
[1764607992043,0.4549,2737.4,2736.7,7.80531334]